fUSD/lending_fUSD_20240113
["ID","MTS","AMOUNT","RATE_DAILY","PERIOD"]
[311479439,1705159868090,-1121.38,0.00022886,2]
[311479440,1705159868099,-500.0,0.00022886,2]
[311479441,1705159868109,-1121.38,0.00022886,2]
[311479442,1705159868118,-500.0,0.00022886,2]
[311479443,1705159868126,-1121.38,0.00022886,2]
[311479444,1705159868137,-1121.38,0.00022886,2]
[311479445,1705159868146,-1449.36,0.00022886,2]
[311479446,1705159868155,-1121.38,0.00022886,2]
[311479447,1705159868164,-1449.36,0.00022886,2]
[311479448,1705159868174,-1449.36,0.00022886,2]
[311479449,1705159868185,-500.0,0.00022886,2]
[311479450,1705159868194,-500.0,0.00022886,2]
[311479451,1705159868203,-500.0,0.00022886,2]
[311479452,1705159868212,-500.0,0.00022886,2]
[311479453,1705159868221,-500.0,0.00022886,2]
[311479454,1705159868230,-500.0,0.00022886,2]
[311479455,1705159868239,-500.0,0.00022886,2]
[311479456,1705159868249,-500.0,0.00022886,2]
[311479457,1705159868260,-500.0,0.00022886,2]
[311479458,1705159868270,-500.0,0.00022886,2]
[311479459,1705159868281,-500.0,0.00022886,2]
[311479460,1705159868290,-500.0,0.00022886,2]
[311479461,1705159868299,-500.0,0.00022886,2]
[311479462,1705159868310,-209.01725838,0.00022886,2]
[311479463,1705159868319,-500.0,0.00022886,2]
[311479464,1705159868328,-500.0,0.00022886,2]
[311479465,1705159868337,-500.0,0.00022886,2]
[311479466,1705159868347,-500.0,0.00022886,2]
[311479467,1705159868356,-500.0,0.00022886,2]
[311479468,1705159868365,-500.0,0.00022886,2]
[311479469,1705159868376,-500.0,0.00022886,2]
[311479470,1705159868384,-500.0,0.00022886,2]
[311479471,1705159868395,-1106.84,0.00022886,2]
[311479472,1705159868404,-1106.84,0.00022886,2]
[311479473,1705159868413,-500.0,0.00022886,2]
[311479474,1705159868423,-500.0,0.00022886,2]
[311479475,1705159868433,-500.0,0.00022886,2]
[311479476,1705159868442,-500.0,0.00022886,2]
[311479477,1705159868451,-2612.02,0.00022886,2]
[311479478,1705159868460,-2612.02,0.00022886,2]
[311479479,1705159868469,-2612.02,0.00022886,2]
[311479480,1705159868478,-10984.21,0.00022886,2]
[311479481,1705159868487,-459.08948626,0.00022886,2]
[311479482,1705159869168,-500.0,0.00022797,2]
[311479483,1705159869178,-2152.93051374,0.00022886,2]
[311479484,1705159869191,-10984.21,0.00022886,2]
[311479485,1705159869200,-2612.02,0.00022886,2]
[311479486,1705159869209,-2612.02,0.00022886,2]
[311479487,1705159869218,-500.0,0.00022886,2]
[311479488,1705159869227,-2207.72454389,0.00022886,2]
[311479489,1705159869239,-7604.94218361,0.00022886,2]
[311479490,1705159869273,-1102.62,0.00022885,2]
[311479491,1705159869285,-1171.5432725,0.00022886,2]
[311479492,1705159869295,-500.0,0.00022886,2]
[311479493,1705159869306,-500.0,0.00022886,2]
[311479494,1705159869315,-2612.02,0.00022886,2]
[311479495,1705159869325,-9599.3600622,0.00022886,2]
[311479496,1705159869879,-500.0,0.00022798,2]
[311479497,1705159869889,-500.0,0.00022798,2]
[311479498,1705159869900,-500.0,0.00022884,2]
[311479499,1705159869910,-500.0,0.00022884,2]
[311479500,1705159869919,-500.0,0.00022884,2]
[311479501,1705159869928,-500.0,0.00022884,2]
[311479502,1705159869937,-500.0,0.00022885,2]
[311479503,1705159869947,-1384.8499378,0.00022886,2]
[311479504,1705159869956,-500.0,0.00022886,2]
[311479505,1705159869965,-825.51795484,0.00022886,2]
[311479506,1705159869977,-285.8128,0.00022886,2]
[311479507,1705159869997,-1500.68924516,0.00022886,2]
[311479508,1705159870007,-4959.51075484,0.00022886,2]
[311479509,1705159870245,-500.0,0.00022884,2]
[311479510,1705159870255,-500.0,0.00022885,2]
[311479511,1705159870266,-500.0,0.00022885,2]
[311479512,1705159870276,-6024.69924516,0.00022886,2]
[311479513,1705159870286,-2612.02,0.00022886,2]
[311479514,1705159870295,-10984.21,0.00022886,2]
[311479515,1705159870308,-500.0,0.00022886,2]
[311479516,1705159870317,-500.0,0.00022886,2]
[311479517,1705159870327,-9342.04407885,0.00022886,2]
[311479518,1705159871592,-150.0,0.0002273,2]
[311479519,1705159871602,-150.0,0.00022738,2]
[311479520,1705159871611,-150.0,0.00022748,2]
[311479521,1705159871621,-300.0,0.00022748,2]
[311479522,1705159871630,-150.0,0.0002276,2]
[311479523,1705159871639,-150.0,0.00022769,2]
[311479524,1705159871648,-17.32876715,0.00022775,2]
[311479525,1705159871797,-132.67123285,0.00022775,2]
[311479526,1705159871808,-150.0,0.00022801,2]
[311479527,1705159871818,-150.0,0.00022808,2]
[311479528,1705159871827,-150.0,0.00022834,2]
[311479529,1705159871837,-150.0,0.00022867,2]
[311479530,1705159871847,-150.0,0.00022874,2]
[311479531,1705159871857,-150.0,0.00022875,2]
[311479532,1705159871868,-150.0,0.00022879,2]
[311479533,1705159871877,-100.97237089,0.00022885,2]
[311479534,1705159874048,419.33476208,0.00021968,2]
[311479535,1705159876064,155.0,0.00021967,2]
[311479536,1705159877322,9105.22,0.0002186,2]
[311479537,1705159878426,380.39836202,0.00021859,2]
[311479538,1705159891453,164.56,0.00021887,2]
[311479539,1705159897444,608.0657442,0.00021859,2]
[311479540,1705159898054,6941.81657183,0.0002175,2]
[311479541,1705159900622,155.72417509,0.00021859,2]
[311479542,1705159905963,269.42109949,0.00021859,2]
[311479543,1705159906815,165.75,0.00022045,2]
[311479544,1705159925765,427.26741868,0.00020596,5]
[311479545,1705160067683,552.17,0.00021798,2]
[311479546,1705160124291,173.78,0.00021794,2]
[311479547,1705160134135,210.0,0.00021522,2]
[311479548,1705160144023,153.93,0.00022004,2]
[311479549,1705160171774,157.88,0.00019861,2]
[311479550,1705160287513,322.65,0.00021733,2]
[311479551,1705160367766,-217.76361723,0.0002225,2]
[311479552,1705160367791,-157.88,0.00022251,2]
[311479553,1705160430963,171.09,0.00021882,2]
[311479554,1705160431193,171.09,0.00022072,2]
[311479555,1705160431702,171.09,0.00022262,2]
[311479556,1705160457751,2472.30301271,0.00022015,2]
[311479557,1705160465901,559.88627078,0.000202,2]
[311479558,1705160465929,155.0,0.00021561,2]
[311479559,1705160470908,155.0,0.00022028,2]
[311479560,1705160474322,155.0,0.00020426,2]
[311479561,1705160531290,155.65,0.00031,120]
[311479562,1705160564534,158.09,0.00021702,2]
[311479563,1705160564781,158.09,0.00021974,2]
[311479564,1705160565730,158.09,0.00022245,2]
[311479565,1705160584904,139.62709928,0.000217,2]
[311479566,1705160584928,418.63290072,0.000217,2]
[311479567,1705160590935,609.99,0.00022022,2]
[311479569,1705160651520,159.25,0.00021912,2]
[311479570,1705160693434,157.88,0.00019771,2]
[311479571,1705160723388,301.14,0.00021685,2]
[311479572,1705160729645,171.98,0.00017346,2]
[311479573,1705160816324,349.61849315,0.00017346,2]
[311479574,1705160819929,847.20015076,0.0002,2]
[311479575,1705160824778,587.2284006,0.00017346,2]
[311479576,1705160828571,599.75120427,0.00013877,2]
[311479577,1705160852858,128255.0935,0.000221,2]
[311479578,1705160853492,500.0,0.000185,2]
[311479579,1705160873474,288.83824222,0.000185,2]
[311479580,1705160894241,500.0,0.00021907,2]
[311479582,1705160937652,-500.0,0.00036913,120]
[311479583,1705160937677,-3223.88643155,0.00036913,30]
[311479584,1705160937699,-277.75763021,0.00036913,30]
[311479585,1705160937721,-1000.0,0.00036913,30]
[311479586,1705160937743,-1514.65925959,0.00036913,60]
[311479587,1705160937767,-118345.2056494,0.00036913,30]
[311479588,1705160937789,-2196.0,0.00036913,120]
[311479589,1705160937811,-1452.94025032,0.00036913,60]
[311479590,1705160937834,-191.9741086,0.00036913,30]
[311479591,1705160937855,-1047.3839083,0.00036913,120]
[311479592,1705160937877,-159.33332837,0.00036913,30]
[311479593,1705160937899,-1870090.85943366,0.00036913,120]
[311479594,1705160942692,-1322.29703897,0.00032,90]
[311479595,1705160942721,-151.0,0.00032684,120]
[311479596,1705160942762,-151.0,0.00033351,30]
[311479597,1705160942793,-2520.0,0.00034865,30]
[311479598,1705160942817,-2520.0,0.00034865,60]
[311479599,1705160942859,-150.74634693,0.00035865,30]
[311479600,1705160942901,-157.38564379,0.00037,30]
[311479601,1705160942936,-385.0,0.0003797,120]
[311479602,1705160942962,-1143.0,0.0003797,120]
[311479603,1705160942985,-150.5,0.0003797,120]
[311479604,1705160943008,-385.0,0.0003797,120]
[311479605,1705160943031,-1143.0,0.0003797,120]
[311479606,1705160943054,-150.5,0.0003797,120]
[311479607,1705160943077,-453.0,0.0003797,120]
[311479608,1705160943099,-164.0,0.0003797,120]
[311479609,1705160943121,-396.0,0.0003797,120]
[311479610,1705160943145,-390.0,0.0003797,120]
[311479611,1705160943168,-377.0,0.0003797,120]
[311479612,1705160943190,-220.0,0.0003797,120]
[311479613,1705160943212,-240.0,0.0003797,120]
[311479614,1705160943235,-453.0,0.0003797,120]
[311479615,1705160943257,-396.0,0.0003797,120]
[311479616,1705160943280,-390.0,0.0003797,120]
[311479617,1705160943301,-164.0,0.0003797,120]
[311479618,1705160943323,-377.0,0.0003797,120]
[311479619,1705160943345,-220.0,0.0003797,120]
[311479620,1705160943367,-240.0,0.0003797,120]
[311479621,1705160943391,-1143.0,0.0003798,120]
[311479622,1705160943413,-150.5,0.0003798,120]
[311479623,1705160943437,-385.0,0.0003798,120]
[311479624,1705160943459,-385.0,0.0003798,120]
[311479625,1705160943482,-1143.0,0.0003798,120]
[311479626,1705160943505,-385.0,0.0003798,120]
[311479627,1705160943528,-1143.0,0.0003798,120]
[311479628,1705160943551,-385.08,0.0003798,120]
[311479629,1705160943576,-1148.11,0.0003798,120]
[311479630,1705160943599,-150.5,0.0003798,120]
[311479631,1705160943621,-249.49,0.0003798,120]
[311479632,1705160943644,-453.0,0.0003798,120]
[311479633,1705160943667,-164.0,0.0003798,120]
[311479634,1705160943696,-396.0,0.0003798,120]
[311479635,1705160943725,-390.0,0.0003798,120]
[311479636,1705160943751,-377.0,0.0003798,120]
[311479637,1705160943774,-256.97,0.0003798,120]
[311479638,1705160943798,-220.0,0.0003798,120]
[311479639,1705160943823,-240.0,0.0003798,120]
[311479640,1705160943846,-453.0,0.0003798,120]
[311479641,1705160943870,-396.0,0.0003798,120]
[311479642,1705160943893,-164.0,0.0003798,120]
[311479643,1705160943916,-390.0,0.0003798,120]
[311479644,1705160943940,-377.0,0.0003798,120]
[311479645,1705160943965,-220.0,0.0003798,120]
[311479646,1705160943989,-240.0,0.0003798,120]
[311479647,1705160944011,-396.0,0.0003798,120]
[311479648,1705160944364,-390.0,0.0003798,120]
[311479649,1705160944388,-164.0,0.0003798,120]
[311479650,1705160944411,-377.0,0.0003798,120]
[311479651,1705160944434,-453.0,0.0003798,120]
[311479652,1705160944457,-220.0,0.0003798,120]
[311479653,1705160944485,-240.0,0.0003798,120]
[311479654,1705160944507,-400.7,0.0003798,120]
[311479655,1705160944529,-393.83,0.0003798,120]
[311479656,1705160944552,-167.22,0.0003798,120]
[311479657,1705160944574,-382.15,0.0003798,120]
[311479658,1705160944597,-455.95,0.0003798,120]
[311479659,1705160944620,-223.95,0.0003798,120]
[311479660,1705160944644,-245.65,0.0003798,120]
[311479661,1705160944667,-282.16,0.0003799,120]
[311479662,1705160944691,-1143.0,0.0003799,120]
[311479663,1705160944713,-150.5,0.0003799,120]
[311479664,1705160944736,-385.0,0.0003799,120]
[311479665,1705160944758,-385.0,0.0003799,120]
[311479666,1705160944781,-1143.0,0.0003799,120]
[311479667,1705160944803,-151.87,0.0003799,120]
[311479668,1705160944825,-385.0,0.0003799,120]
[311479669,1705160944847,-1143.0,0.0003799,120]
[311479670,1705160944870,-385.0,0.0003799,120]
[311479671,1705160944893,-1143.0,0.0003799,120]
[311479672,1705160944914,-150.5,0.0003799,120]
[311479673,1705160944937,-150.5,0.0003799,120]
[311479674,1705160944959,-453.0,0.0003799,120]
[311479675,1705160944982,-164.0,0.0003799,120]
[311479676,1705160945006,-396.0,0.0003799,120]
[311479677,1705160945029,-390.0,0.0003799,120]
[311479678,1705160945052,-377.0,0.0003799,120]
[311479679,1705160945077,-150.5,0.0003799,120]
[311479680,1705160945101,-220.0,0.0003799,120]
[311479681,1705160945129,-240.0,0.0003799,120]
[311479682,1705160945154,-453.0,0.0003799,120]
[311479683,1705160945179,-396.0,0.0003799,120]
[311479684,1705160945203,-164.0,0.0003799,120]
[311479685,1705160945228,-390.0,0.0003799,120]
[311479686,1705160945254,-377.0,0.0003799,120]
[311479687,1705160945280,-220.0,0.0003799,120]
[311479688,1705160945305,-240.0,0.0003799,120]
[311479689,1705160945330,-453.0,0.0003799,120]
[311479690,1705160945354,-396.0,0.0003799,120]
[311479691,1705160945379,-390.0,0.0003799,120]
[311479692,1705160945405,-164.0,0.0003799,120]
[311479693,1705160945428,-377.0,0.0003799,120]
[311479694,1705160945451,-220.0,0.0003799,120]
[311479695,1705160945477,-240.0,0.0003799,120]
[311479696,1705160945501,-396.0,0.0003799,120]
[311479697,1705160945524,-164.0,0.0003799,120]
[311479698,1705160945549,-390.0,0.0003799,120]
[311479699,1705160945573,-377.0,0.0003799,120]
[311479700,1705160945597,-453.0,0.0003799,120]
[311479701,1705160945621,-220.0,0.0003799,120]
[311479702,1705160945645,-240.0,0.0003799,120]
[311479703,1705160945678,-1002.03934941,0.00038356,120]
[311479704,1705160945701,-500.0,0.00038356,30]
[311479705,1705160945726,-3000.0,0.00038356,30]
[311479706,1705160945757,-725.01775688,0.0003863,30]
[311479707,1705160945789,-800.0,0.0003888,40]
[311479708,1705160945816,-500.0,0.00038904,30]
[311479709,1705160945846,-169.53355484,0.00039,40]
[311479710,1705160945872,-33901.1742875,0.00039,30]
[311479711,1705160945900,-200000.0,0.0003903,30]
[311479712,1705160945931,-50000.0,0.00039372,30]
[311479713,1705160945955,-1516.35271566,0.000394,30]
[311479714,1705160945979,-500.0,0.00039452,30]
[311479715,1705160946007,-500.0,0.00039726,30]
[311479716,1705160946029,-498.49833525,0.00039726,30]
[311479717,1705160946056,-50000.0,0.00039784,30]
[311479718,1705160946086,-196016.95836304,0.0004,30]
[311479719,1705160946109,-10000.0,0.0004,30]
[311479720,1705160946134,-1000.0,0.0004,30]
[311479721,1705160946158,-1187.0,0.0004,30]
[311479722,1705160946180,-1193.0,0.0004,33]
[311479723,1705160946202,-632.67016137,0.0004,120]
[311479724,1705160946226,-949.33834088,0.0004,120]
[311479725,1705160946249,-376.95556661,0.0004,30]
[311479726,1705160946272,-350.0,0.0004,120]
[311479727,1705160946295,-206.45036788,0.0004,120]
[311479728,1705160946317,-400.0,0.0004,120]
[311479729,1705160946340,-300.0,0.0004,41]
[311479730,1705160946363,-2963.72503177,0.0004,33]
[311479731,1705160946387,-1911.57,0.0004,30]
[311479732,1705160946410,-2916.92528096,0.0004,30]
[311479733,1705160946433,-3204.73417567,0.0004,120]
[311479734,1705160946456,-1600.0,0.0004,30]
[311479735,1705160946479,-306.0,0.0004,30]
[311479736,1705160946502,-27837.0,0.0004,30]
[311479737,1705160946525,-33560.54330022,0.0004,30]
[311479738,1705160946549,-844.36006733,0.0004,60]
[311479739,1705160946572,-194.8011426,0.0004,120]
[311479740,1705160946595,-628.601,0.0004,120]
[311479741,1705160946617,-206.35291381,0.0004,30]
[311479742,1705160946639,-625.12123291,0.0004,30]
[311479743,1705160946663,-987.3347132,0.0004,30]
[311479744,1705160946689,-36517.55098127,0.0004,30]
[311479745,1705160946714,-6713.54750375,0.0004,30]
[311479746,1705160946740,-1754.95653191,0.0004,30]
[311479747,1705160946768,-3489.48505056,0.0004,30]
[311479748,1705160946794,-3031.46161328,0.0004,30]
[311479749,1705160946817,-16685.94174483,0.0004,30]
[311479750,1705160947063,-61400.01009464,0.0004,30]
[311479751,1705160947088,-10411.76063807,0.0004,30]
[311479752,1705160947112,-24648.82395142,0.0004,30]
[311479753,1705160947135,-408.84140072,0.0004,30]
[311479754,1705160947158,-8018.7791458,0.0004,30]
[311479755,1705160947183,-5811.38549718,0.0004,30]
[311479756,1705160947208,-20739.06222833,0.0004,30]
[311479757,1705160947232,-150.15714334,0.00040014,30]
[311479758,1705160947255,-459.00838594,0.00040019,30]
[311479759,1705160947278,-467.29593416,0.00040025,30]
[311479760,1705160947299,-459.00838594,0.00040026,30]
[311479761,1705160947321,-150.76968102,0.00040043,30]
[311479762,1705160947343,-459.00838594,0.00040065,30]
[311479763,1705160947366,-467.29593416,0.00040085,30]
[311479764,1705160947390,-387.35301902,0.00040103,30]
[311479765,1705160947413,-204.27697991,0.00040105,30]
[311479766,1705160947435,-387.35301902,0.00040114,30]
[311479767,1705160947460,-785.21023436,0.00040167,30]
[311479768,1705160947483,-186.30502715,0.00040167,30]
[311479769,1705160947507,-3903.1442678,0.00040167,30]
[311479770,1705160947530,-2230.24149055,0.00040167,30]
[311479771,1705160947553,-1698.45935496,0.00040167,30]
[311479772,1705160947578,-679.6942102,0.00040167,30]
[311479773,1705160947600,-193.64257509,0.00040169,30]
[311479774,1705160947622,-459.00838594,0.0004018,30]
[311479775,1705160947646,-180.59832178,0.00040194,30]
[311479776,1705160947668,-10540.0,0.000402,30]
[311479777,1705160947690,-180.59832178,0.00040231,30]
[311479778,1705160947711,-157.17070085,0.00040236,30]
[311479779,1705160947733,-150.15714334,0.00040244,30]
[311479780,1705160947758,-794.71486319,0.00040254,30]
[311479781,1705160947781,-155.98793209,0.00040273,30]
[311479782,1705160947805,-180.59832178,0.00040292,30]
[311479783,1705160947827,-193.64257509,0.00040297,30]
[311479784,1705160947851,-467.29593416,0.0004031,30]
[311479785,1705160947873,-459.00838594,0.00040312,30]
[311479786,1705160947896,-155.4256101,0.00040321,30]
[311479787,1705160947919,-150.76968102,0.00040348,30]
[311479788,1705160947944,-151.85,0.00040368,60]
[311479789,1705160947966,-204.27697991,0.00040379,30]
[311479790,1705160947989,-794.71486319,0.0004039,30]
[311479791,1705160948011,-175.26329176,0.00040394,30]
[311479792,1705160948034,-467.29593416,0.00040482,30]
[311479793,1705160948056,-150.76968102,0.00040488,30]
[311479794,1705160948078,-1250.57378861,0.00040506,30]
[311479795,1705160948100,-152.69384956,0.00040516,30]
[311479796,1705160948121,-180.59832178,0.00040518,30]
[311479797,1705160948144,-153.54568954,0.00040542,30]
[311479798,1705160948165,-150.15714334,0.00040543,30]
[311479799,1705160948188,-1250.57378861,0.00040551,30]
[311479800,1705160948211,-387.35301902,0.00040575,30]
[311479801,1705160948234,-157.17070085,0.00040587,30]
[311479802,1705160948259,-150.0,0.00040631,120]
[311479803,1705160948282,-158.34328426,0.00040675,30]
[311479804,1705160948305,-467.29593416,0.00040682,30]
[311479805,1705160948327,-175.00208591,0.00040685,30]
[311479806,1705160948350,-175.00208591,0.00040686,30]
[311479807,1705160948374,-387.35301902,0.00040686,30]
[311479808,1705160948398,-1250.57378861,0.00040698,30]
[311479809,1705160948421,-1250.57378861,0.0004071,30]
[311479810,1705160948443,-1250.57378861,0.00040721,30]
[311479811,1705160948467,-794.71486319,0.00040747,30]
[311479812,1705160948490,-150.76968102,0.00040747,30]
[311479813,1705160948512,-150.15714334,0.00040748,30]
[311479814,1705160948535,-1250.57378861,0.00040774,30]
[311479815,1705160948558,-155.4256101,0.00040815,30]
[311479816,1705160948579,-150.15714334,0.00040824,30]
[311479817,1705160948602,-151.85,0.00040832,60]
[311479818,1705160948626,-794.71486319,0.00040857,30]
[311479819,1705160948651,-1250.57378861,0.00040868,30]
[311479820,1705160948673,-150.15714334,0.00040879,30]
[311479821,1705160948695,-467.29593416,0.00040904,30]
[311479822,1705160948719,-204.27697991,0.00040906,30]
[311479823,1705160948741,-204.27697991,0.00040937,30]
[311479824,1705160948767,-400.0,0.00040959,120]
[311479825,1705160948789,-157.17070085,0.00040973,30]
[311479826,1705160948812,-500.0,0.00040987,31]
[311479827,1705160948833,-152.69384956,0.00040995,30]
[311479828,1705160948856,-300.0,0.00041,42]
[311479829,1705160948878,-4399.0,0.00041,30]
[311479830,1705160948902,-40914.0,0.00041,30]
[311479831,1705160948924,-1000.0,0.00041,120]
[311479832,1705160948948,-467.29593416,0.00041007,30]
[311479833,1705160948971,-350.0,0.00041014,120]
[311479834,1705160948994,-152.75794467,0.00041065,30]
[311479835,1705160949018,-794.71486319,0.00041069,30]
[311479836,1705160949040,-155.4256101,0.0004109,30]
[311479837,1705160949064,-500.0,0.00041095,30]
[311479838,1705160949087,-559.38937038,0.00041095,30]
[311479839,1705160952935,-1543445.79526309,0.00036916,120]
[311479840,1705160952956,-160.25208428,0.00036916,30]
[311479841,1705160952978,-160.87442723,0.00036916,60]
[311479842,1705160953000,-335.70750724,0.00036916,30]
[311479843,1705160953023,-471.0248856,0.00036916,120]
[311479844,1705160953046,-1967.760791,0.00036916,30]
[311479845,1705160953067,-1904.383291,0.00036916,30]
[311479846,1705160953090,-305.224997,0.00036916,30]
[311479847,1705160960841,450.0,0.00022,3]
[311479848,1705160975672,171.09,0.00021789,2]
[311479849,1705160975870,171.09,0.00022168,2]
[311479850,1705160989999,162.43,0.00021632,2]
[311479865,1705161032145,-153.61374241,0.00022238,2]
[311479867,1705161032155,-4463.64045491,0.00022337,2]
[311479882,1705161032460,-974.71980291,0.00022337,2]
[311479883,1705161032469,-300.0,0.00022337,2]
[311479884,1705161032478,-763.12054319,0.00022338,2]
[311479885,1705161032487,-432.74905272,0.00022338,2]
[311479886,1705161032498,-330.37149047,0.00022338,2]
[311479887,1705161032507,-563.2511928,0.00022338,2]
[311479888,1705161032543,-199.86935039,0.00022338,2]
[311479889,1705161032553,-173.78,0.00022339,2]
[311479890,1705161032562,-31449.18478826,0.0002242,2]
[311479891,1705161032571,-300.0,0.00022422,2]
[311479892,1705161032580,-157.88,0.0002246,2]
[311479893,1705161032589,-153.61374241,0.00022468,2]
[311479894,1705161032599,-3952.05,0.00022496,2]
[311479895,1705161032608,-594.94915485,0.00022496,2]
[311479896,1705161032617,-162.82344462,0.00022496,2]
[311479897,1705161032626,-380.77500368,0.00022496,2]
[311479898,1705161032636,-158.09,0.00022516,2]
[311479899,1705161032645,-162.82344459,0.00022546,2]
[311479900,1705161032654,-171.09,0.00022546,2]
[311479901,1705161032663,-2049.14,0.00022547,2]
[311479902,1705161032672,-1104.33,0.00022547,2]
[311479903,1705161032681,-594.9491548,0.00022554,2]
[311479904,1705161032692,-235.89929738,0.00022594,2]
[311479905,1705161032701,-537.16,0.00022595,2]
[311479906,1705161032711,-542.37,0.00022595,2]
[311479907,1705161032719,-500.0,0.00022595,2]
[311479908,1705161032729,-500.0,0.00022595,2]
[311479909,1705161032738,-500.0,0.00022595,2]
[311479910,1705161032747,-500.0,0.00022595,2]
[311479911,1705161032757,-512.72,0.00022595,2]
[311479912,1705161032766,-503.19,0.00022595,2]
[311479913,1705161032775,-500.0,0.00022595,2]
[311479914,1705161032785,-500.0,0.00022595,2]
[311479915,1705161032794,-4751.35,0.00022595,2]
[311479916,1705161032802,-500.0,0.00022595,2]
[311479917,1705161032812,-500.0,0.00022595,2]
[311479918,1705161032836,-500.0,0.00022595,2]
[311479919,1705161032859,-500.0,0.00022595,2]
[311479920,1705161032868,-787.86,0.00022595,2]
[311479921,1705161032877,-500.0,0.00022595,2]
[311479922,1705161032887,-500.0,0.00022595,2]
[311479923,1705161032896,-551.83,0.00022595,2]
[311479924,1705161032905,-3325.75,0.00022595,2]
[311479925,1705161032914,-500.0,0.00022595,2]
[311479926,1705161032923,-500.0,0.00022595,2]
[311479927,1705161032932,-500.0,0.00022595,2]
[311479928,1705161032942,-500.0,0.00022595,2]
[311479929,1705161032951,-500.0,0.00022595,2]
[311479930,1705161032960,-533.45,0.00022595,2]
[311479931,1705161032970,-500.0,0.00022595,2]
[311479932,1705161032979,-3732.13,0.00022595,2]
[311479933,1705161032989,-500.0,0.00022595,2]
[311479934,1705161032998,-500.0,0.00022595,2]
[311479935,1705161033007,-872.02,0.00022595,2]
[311479936,1705161033016,-500.0,0.00022595,2]
[311479937,1705161033025,-500.0,0.00022595,2]
[311479938,1705161033035,-500.0,0.00022595,2]
[311479939,1705161033044,-162.82344459,0.00022596,2]
[311479940,1705161033053,-227487.27089623,0.00022596,2]
[311479946,1705161034842,-566.44,0.00022595,2]
[311479947,1705161034852,-51577.02990377,0.00022596,2]
[311479948,1705161034861,-25362.11,0.00022596,2]
[311479949,1705161034870,-9495.77,0.00022596,2]
[311479950,1705161034879,-318.9932,0.00022598,2]
[311479951,1705161034888,-322.87,0.00022598,2]
[311479952,1705161034898,-594.9491548,0.00022611,2]
[311479953,1705161034907,-301.14,0.00022664,2]
[311479954,1705161034916,-594.9491548,0.00022669,2]
[311479955,1705161034926,-203.98837269,0.00022695,2]
[311479956,1705161034935,-1225.87333661,0.00022695,2]
[311479957,1705161034947,-500.0,0.00022695,2]
[311479958,1705161034956,-503.19,0.00022695,2]
[311479959,1705161034965,-4751.35,0.00022695,2]
[311479960,1705161034975,-500.0,0.00022695,2]
[311479961,1705161034984,-500.0,0.00022695,2]
[311479962,1705161034993,-500.0,0.00022695,2]
[311479963,1705161035003,-500.0,0.00022695,2]
[311479964,1705161035012,-3325.75,0.00022695,2]
[311479965,1705161035022,-500.0,0.00022695,2]
[311479966,1705161035032,-500.0,0.00022695,2]
[311479967,1705161035041,-500.0,0.00022695,2]
[311479968,1705161035051,-500.0,0.00022695,2]
[311479969,1705161035060,-500.0,0.00022695,2]
[311479970,1705161035070,-500.0,0.00022695,2]
[311479971,1705161035079,-500.0,0.00022695,2]
[311479972,1705161035089,-500.0,0.00022695,2]
[311479973,1705161035099,-500.0,0.00022696,2]
[311479974,1705161035109,-500.0,0.00022696,2]